bitfinex-derivatives/quotes_SOLF0:USTF0_20260310
["timestamp","ask_amount","ask_price","bid_price","bid_amount"]
[1773111350717,4.78284414,86.57,86.52,4.78284414]
[1773111350910,4.78284414,86.57,86.521,16.33058397]
[1773111352215,16.98063789,86.569,86.521,16.33058397]
[1773111353002,16.98063789,86.583,86.521,16.33058397]
[1773111353204,16.98063789,86.579,86.521,16.33058397]
[1773111354414,16.98063789,86.579,86.531,16.54645852]
[1773111355008,4.78284414,86.59,86.541,16.54645852]
[1773111355309,16.98063789,86.589,86.531,16.54645852]
[1773111355514,4.78284414,86.58,86.531,16.54645852]
[1773111355714,4.78284414,86.57,86.531,16.54645852]
[1773111356113,16.98063789,86.579,86.531,16.54645852]
[1773111356315,4.78284414,86.57,86.52,4.78284414]
[1773111356517,16.98063789,86.569,86.517,16.54645852]
[1773111356714,16.98063789,86.569,86.52,4.78284414]
[1773111357310,10.397,86.559,86.52,4.78284414]
[1773111358115,4.78284414,86.55,86.508,10.403]
[1773111358316,10.397,86.551,86.508,10.403]
[1773111358518,10.397,86.551,86.503,16.54645852]
[1773111358817,16.98063789,86.556,86.503,16.54645852]
[1773111359816,27.37763789,86.555,86.504,10.403]
[1773111360215,16.98063789,86.554,86.504,10.403]
[1773111360418,16.98063789,86.58,86.54,4.78284414]
[1773111360619,16.98063789,86.595,86.55,4.78284414]
[1773111361621,16.98063789,86.613,86.57,4.78284414]
[1773111361810,16.98063789,86.613,86.561,16.54645852]
[1773111362119,4.78284414,86.61,86.561,16.54645852]
[1773111362314,21.76348203,86.61,86.561,16.54645852]
[1773111362520,4.78284414,86.59,86.53,4.78284414]
[1773111362719,16.98063789,86.579,86.53,4.78284414]
[1773111362919,16.98063789,86.579,86.54,4.78284414]
[1773111363517,16.98063789,86.579,86.53,4.78284414]
[1773111363722,15.59257114,86.569,86.52,4.78284414]
[1773111364021,15.59257114,86.559,86.51,20.21242059]
[1773111365620,15.59257114,86.559,86.51,15.42957645]
[1773111366016,10.396,86.567,86.51,15.42957645]
[1773111366422,15.59257114,86.575,86.512,15.42957645]
[1773111367119,15.59257114,86.599,86.512,15.42957645]
[1773111368322,10.392,86.595,86.541,15.42957645]
[1773111368523,10.71738128,86.61,86.541,15.42957645]
[1773111368524,15.59257114,86.594,86.541,15.42957645]
[1773111368923,10.394,86.584,86.541,15.42957645]
[1773111369123,15.59257114,86.583,86.513,15.42957645]
[1773111369526,15.59257114,86.583,86.531,15.42957645]
[1773111370517,15.59257114,86.609,86.538,15.42957645]
[1773111372325,15.59257114,86.602,86.546,10.398]
[1773111374035,15.59257114,86.602,86.546,25.82757645]
[1773111374725,15.59257114,86.602,86.547,15.42957645]
[1773111375137,10.392,86.598,86.547,15.42957645]
[1773111375526,15.59257114,86.597,86.547,15.42957645]
[1773111376629,15.59257114,86.597,86.53,12.81406762]
[1773111376630,15.59257114,86.61,86.549,15.42957645]
[1773111378333,15.59257114,86.608,86.553,25.82657645]
[1773111378534,15.59257114,86.608,86.554,15.42957645]
[1773111379035,15.59257114,86.608,86.559,25.82557645]
[1773111379238,15.59257114,86.608,86.56,15.42957645]
[1773111379535,15.59257114,86.608,86.562,15.42957645]
[1773111380832,15.59257114,86.606,86.562,15.42957645]
[1773111383041,12.81406762,86.63,86.534,15.42957645]
[1773111383042,15.59257114,86.6,86.534,15.42957645]
[1773111384044,10.393,86.591,86.546,10.398]
[1773111384743,10.393,86.591,86.546,15.42957645]
[1773111385043,10.394,86.584,86.546,15.42957645]
[1773111385349,15.59257114,86.6,86.546,15.42957645]
[1773111385550,20.37242274,86.6,86.55,4.7798516]
[1773111385750,15.59257114,86.599,86.55,4.7798516]
[1773111386351,10.393,86.592,86.55,4.7798516]
[1773111388852,15.59257114,86.599,86.55,4.7798516]
[1773111389054,20.37242274,86.61,86.56,4.7798516]
[1773111389352,15.59257114,86.609,86.56,4.7798516]
[1773111389653,20.773,86.644,86.55,4.7798516]
[1773111389654,15.59257114,86.599,86.55,4.7798516]
[1773111391552,15.59257114,86.599,86.57,4.7798516]
[1773111391749,15.59257114,86.599,86.551,15.42957645]
[1773111392350,15.59257114,86.588,86.55,4.7798516]
[1773111392550,15.59257114,86.588,86.516,20.72902323]
[1773111392551,15.59257114,86.579,86.53,4.7798516]
[1773111393252,4.7798516,86.57,86.52,20.20942805]
[1773111393550,15.59257114,86.569,86.52,20.20942805]
[1773111393745,15.59257114,86.569,86.51,4.7798516]
[1773111394151,15.59257114,86.569,86.52,4.7798516]
[1773111394360,14.21002317,86.619,86.505,15.7595575]
[1773111394361,15.67647736,86.559,86.51,4.7798516]
[1773111395461,10.397,86.557,86.51,4.7798516]
[1773111395854,10.397,86.557,86.52,4.7798516]
[1773111396359,15.67647736,86.559,86.52,4.7798516]
[1773111396760,10.396,86.566,86.52,4.7798516]
[1773111397060,15.67647736,86.573,86.52,20.5394091]
[1773111397265,15.67647736,86.573,86.521,15.7595575]
[1773111397759,10.396,86.563,86.521,15.7595575]
[1773111398657,10.395,86.572,86.53,4.7798516]
[1773111400656,15.67647736,86.568,86.51,4.7798516]
[1773111400861,15.67647736,86.568,86.51,20.5394091]
[1773111401059,15.67647736,86.568,86.52,4.7798516]
[1773111401259,15.67647736,86.568,86.51,15.7595575]
[1773111401455,15.67647736,86.568,86.52,4.7798516]
[1773111402461,15.67647736,86.564,86.51,20.5394091]
[1773111402858,4.7798516,86.56,86.51,20.5394091]
[1773111403058,15.67647736,86.56,86.51,20.5394091]
[1773111403465,26.07247736,86.56,86.51,20.5394091]
[1773111403665,26.07247736,86.56,86.51,20.54347699]
[1773111404163,15.67647736,86.559,86.51,20.54347699]
[1773111404364,15.67647736,86.559,86.511,15.7595575]
[1773111404564,14.21002317,86.618,86.469,34.7]
[1773111404565,10.395,86.571,86.521,15.7595575]
[1773111405166,10.396,86.563,86.521,15.7595575]
[1773111405369,15.67647736,86.559,86.51,4.78391949]
[1773111406463,26.07347736,86.557,86.506,15.7595575]
[1773111406663,15.67647736,86.556,86.51,4.78391949]
[1773111407366,26.07347736,86.555,86.51,4.78391949]
[1773111407564,26.07347736,86.555,86.506,15.7595575]
[1773111407565,15.67647736,86.554,86.506,15.7595575]
[1773111407968,10.398,86.546,86.506,15.7595575]
[1773111408966,15.67647736,86.554,86.506,15.7595575]
[1773111409466,10.397,86.552,86.506,15.7595575]
[1773111409667,4.78391949,86.53,86.487,10.405]
[1773111410667,4.78391949,86.53,86.48,4.78391949]
[1773111410868,4.78391949,86.53,86.481,15.7595575]
[1773111411074,15.67647736,86.531,86.481,15.7595575]
[1773111411365,15.67647736,86.531,86.492,10.405]
[1773111411673,20.789,86.576,86.481,15.7595575]
[1773111411674,15.68443447,86.529,86.481,15.7595575]
[1773111411873,4.78391949,86.52,86.481,15.7595575]
[1773111412073,15.68443447,86.519,86.47,4.78391949]
[1773111412367,4.78391949,86.51,86.465,15.46744584]
[1773111412560,4.78391949,86.5,86.451,15.46744584]
[1773111412765,15.68443447,86.499,86.451,15.46744584]
[1773111413771,15.68443447,86.489,86.436,25.87844584]
[1773111413968,15.68443447,86.489,86.44,4.78391949]
[1773111414274,15.68443447,86.504,86.451,15.46744584]
[1773111414471,4.78391949,86.5,86.451,15.46744584]
[1773111414670,20.46835396,86.5,86.451,15.46744584]
[1773111414867,15.68443447,86.499,86.451,15.46744584]
[1773111415068,15.68443447,86.499,86.451,25.87644584]
[1773111415473,4.78391949,86.49,86.451,15.46744584]
[1773111415674,15.68443447,86.49,86.44,4.78391949]
[1773111415977,15.68443447,86.49,86.441,15.46744584]
[1773111416174,15.68443447,86.489,86.441,15.46744584]
[1773111417477,10.405,86.487,86.441,15.46744584]
[1773111417677,26.08943447,86.487,86.441,15.46744584]
[1773111418172,15.68443447,86.486,86.441,15.46744584]
[1773111419282,15.68443447,86.499,86.45,4.78391949]
[1773111419471,15.68443447,86.499,86.439,15.46744584]
[1773111419472,4.78391949,86.49,86.44,4.78391949]
[1773111419671,15.68443447,86.489,86.44,4.78391949]
[1773111420269,15.68443447,86.487,86.441,15.46744584]
[1773111420472,15.68443447,86.479,86.427,15.46744584]
[1773111420872,15.68443447,86.477,86.427,15.46744584]
[1773111421771,15.68443447,86.477,86.429,10.412]
[1773111421977,15.68443447,86.477,86.431,15.46744584]
[1773111422177,15.68443447,86.459,86.41,4.78391949]
[1773111422479,15.68443447,86.459,86.334,27.95378749]
[1773111422480,15.68443447,86.439,86.393,10.416]
[1773111422673,15.68443447,86.439,86.318,11.55]
[1773111422674,4.78391949,86.43,86.349,15.46744584]
[1773111422875,15.68443447,86.439,86.39,4.78391949]
[1773111423180,26.09543447,86.439,86.39,15.20091949]
[1773111423378,15.68443447,86.438,86.39,15.20091949]
[1773111423579,15.68443447,86.438,86.381,15.46744584]
[1773111423771,4.78391949,86.43,86.383,10.418]
[1773111424081,4.78391949,86.43,86.384,15.62040609]
[1773111424480,15.68443447,86.438,86.384,15.62040609]
[1773111424680,15.68443447,86.438,86.393,10.416]
[1773111424980,15.68443447,86.438,86.364,2.01344029]
[1773111424981,26.40588605,86.449,86.4,20.40432558]
[1773111425180,15.99588605,86.448,86.4,20.40432558]
[1773111425376,15.99588605,86.448,86.402,15.62040609]
[1773111425785,15.99588605,86.448,86.41,4.78391949]
[1773111426976,20.806,86.508,86.364,2.01344029]
[1773111426977,15.99588605,86.439,86.39,4.78391949]
[1773111427177,15.99588605,86.468,86.411,15.62040609]
[1773111427483,21.29735164,86.571,86.364,2.01344029]
[1773111427484,15.99588605,86.489,86.43,4.78391949]
[1773111427877,15.99588605,86.489,86.44,4.78391949]
[1773111429379,15.99588605,86.479,86.44,4.78391949]
[1773111429576,15.99588605,86.479,86.43,4.78391949]
[1773111429782,15.99588605,86.479,86.44,4.78391949]
[1773111430784,15.99588605,86.494,86.45,4.78391949]
[1773111431488,20.77980554,86.51,86.46,4.78391949]
[1773111431682,20.77980554,86.51,86.448,15.62040609]
[1773111431683,15.99588605,86.51,86.47,4.78391949]
[1773111432587,15.99588605,86.51,86.46,4.78391949]
[1773111432789,15.99588605,86.51,86.448,15.62040609]
[1773111433086,15.99588605,86.51,86.47,4.78391949]
[1773111433684,15.99588605,86.51,86.454,10.409]
[1773111433987,15.99588605,86.508,86.454,10.409]
[1773111434392,15.99588605,86.505,86.448,15.62040609]
[1773111435188,10.403,86.503,86.45,15.62040609]
[1773111435390,26.39888605,86.503,86.45,15.62040609]
[1773111435790,15.99588605,86.503,86.453,10.409]
[1773111435996,15.99588605,86.503,86.454,15.62040609]
[1773111436591,15.99588605,86.518,86.458,15.62040609]
[1773111437995,15.99588605,86.518,86.461,15.62040609]
[1773111438296,15.99588605,86.532,86.461,15.62040609]
[1773111439402,15.99588605,86.529,86.466,15.62040609]
[1773111439703,15.99588605,86.529,86.44,28.44998131]
[1773111440303,15.99588605,86.529,86.44,15.62040609]
[1773111440999,15.99588605,86.496,86.44,15.62040609]
[1773111441202,15.99588605,86.496,86.421,15.62040609]
[1773111441796,15.99588605,86.496,86.372,20.839]
[1773111441797,15.99588605,86.511,86.443,15.62040609]
[1773111443497,15.99588605,86.494,86.443,15.62040609]
[1773111444198,15.99588605,86.494,86.444,10.41]
[1773111444698,15.99588605,86.494,86.443,15.62040609]
[1773111445902,15.99588605,86.494,86.444,15.62040609]
[1773111447505,15.99588605,86.494,86.446,15.62040609]
[1773111448002,10.406,86.484,86.43,10.412]
[1773111448307,12.82957522,86.53,86.431,15.62040609]
[1773111448308,15.99588605,86.509,86.431,15.62040609]
[1773111449109,15.99588605,86.499,86.445,15.62040609]
[1773111450414,15.99588605,86.499,86.45,15.62040609]
[1773111450800,15.99588605,86.529,86.451,15.62040609]
[1773111451200,12.82957522,86.53,86.45,12.82957522]
[1773111451201,15.99588605,86.516,86.454,15.62040609]
[1773111452202,15.99588605,86.51,86.457,26.02940609]
[1773111452910,10.403,86.507,86.457,15.62040609]
[1773111453111,15.99588605,86.506,86.457,15.62040609]
[1773111453713,15.99588605,86.506,86.46,4.79044534]
[1773111454810,15.99588605,86.506,86.461,15.75698951]
[1773111455117,15.99588605,86.506,86.46,20.54743485]
[1773111455815,15.99588605,86.506,86.47,4.79044534]
[1773111457306,15.59457081,86.518,86.47,4.79044534]
[1773111460722,15.59457081,86.518,86.48,4.79044534]
[1773111460921,15.59457081,86.532,86.5,4.79044534]
[1773111461121,15.59457081,86.532,86.49,4.79044534]
[1773111464322,10.4,86.529,86.49,4.79044534]
[1773111464914,25.99457081,86.529,86.49,4.79044534]
[1773111465519,10.401,86.525,86.49,4.7868805]
[1773111466828,15.59457081,86.549,86.5,4.7868805]
[1773111467621,10.399,86.538,86.5,4.7868805]
[1773111469533,15.59457081,86.55,86.51,4.7868805]
[1773111470636,10.398,86.549,86.51,4.7868805]
[1773111470838,15.59457081,86.548,86.51,4.7868805]
[1773111471935,4.7868805,86.57,86.52,4.7868805]
[1773111471936,15.59457081,86.545,86.52,4.7868805]
[1773111472133,15.59457081,86.545,86.5,4.7868805]
[1773111472638,15.59457081,86.545,86.51,4.7868805]
[1773111473230,26.10762301,86.544,86.52,4.7868805]
[1773111473425,26.10762301,86.544,86.497,15.94651198]
[1773111473426,15.70962301,86.543,86.51,4.7868805]
[1773111475036,10.397,86.552,86.51,20.73339248]
[1773111475737,26.10762301,86.549,86.51,20.73339248]
[1773111476132,15.70962301,86.548,86.51,20.73339248]
[1773111477539,15.70962301,86.548,86.51,4.7868805]
[1773111478837,10.398,86.546,86.51,4.7868805]
[1773111479136,15.70962301,86.545,86.51,4.7868805]
[1773111479741,10.399,86.543,86.51,4.7868805]
[1773111480143,15.70962301,86.542,86.5,20.73339248]
[1773111480341,15.70962301,86.56,86.53,4.7868805]
[1773111480544,10.397,86.559,86.53,4.7868805]
[1773111480740,15.70962301,86.558,86.51,4.7868805]
[1773111481538,15.70962301,86.558,86.52,4.7868805]
[1773111481739,15.70962301,86.558,86.51,4.7868805]
[1773111482343,15.70962301,86.556,86.508,15.94651198]
[1773111482534,15.70962301,86.549,86.5,4.7868805]
[1773111482734,10.399,86.537,86.495,15.94651198]
[1773111483539,10.398,86.546,86.501,16.60194601]
[1773111483834,16.03246754,86.545,86.501,16.60194601]
[1773111485439,10.399,86.542,86.501,16.60194601]
[1773111485637,26.43146754,86.542,86.501,16.60194601]
[1773111486640,16.03246754,86.542,86.505,10.403]
[1773111486836,16.03246754,86.542,86.492,16.60194601]
[1773111487037,16.03246754,86.559,86.501,16.60194601]
[1773111487938,4.7868805,86.55,86.501,16.60194601]
[1773111488133,16.03246754,86.55,86.501,16.60194601]
[1773111488441,10.398,86.547,86.502,16.60194601]
[1773111488840,16.03246754,86.55,86.502,16.60194601]
[1773111489941,16.03246754,86.55,86.5,4.7868805]
[1773111489942,16.03246754,86.562,86.512,16.60194601]
[1773111490338,16.03246754,86.559,86.512,16.60194601]
[1773111490934,16.03246754,86.552,86.512,16.60194601]
[1773111491940,16.03246754,86.549,86.5,21.38882651]
[1773111492241,16.03246754,86.539,86.5,16.60194601]
[1773111492743,16.03246754,86.538,86.491,16.60194601]
[1773111493444,16.03246754,86.538,86.493,16.60194601]
[1773111495741,16.03246754,86.538,86.501,16.60194601]
[1773111496136,16.03246754,86.537,86.501,16.60194601]
[1773111496336,16.03246754,86.537,86.481,16.60194601]
[1773111496537,16.03246754,86.537,86.462,34.7]
[1773111496538,16.03246754,86.537,86.491,16.60194601]
[1773111498144,20.81934804,86.55,86.501,16.60194601]
[1773111498334,16.03246754,86.549,86.501,16.60194601]
[1773111499342,16.03246754,86.549,86.503,16.60194601]
[1773111500741,16.03246754,86.549,86.505,16.60194601]
[1773111502544,16.03246754,86.549,86.506,10.403]
[1773111502951,16.03246754,86.549,86.506,27.00494601]
[1773111503150,16.03246754,86.549,86.507,16.60194601]
[1773111504852,4.7868805,86.53,86.489,16.60194601]
[1773111505154,16.03246754,86.529,86.489,16.60194601]
[1773111505355,16.03246754,86.538,86.489,16.60194601]
[1773111505549,20.81934804,86.55,86.491,16.60194601]
[1773111505750,16.03246754,86.55,86.501,16.60194601]
[1773111506250,16.03246754,86.549,86.501,16.60194601]
[1773111506557,16.03246754,86.539,86.488,16.60194601]
[1773111507355,10.4,86.531,86.488,16.60194601]
[1773111508655,10.4,86.531,86.491,16.60194601]
[1773111509758,16.03246754,86.523,86.481,16.60194601]
[1773111511373,16.03246754,86.523,86.482,16.60194601]
[1773111512370,26.43346754,86.523,86.482,16.60194601]
[1773111513068,16.03246754,86.523,86.484,16.60194601]
[1773111514563,16.03246754,86.523,86.48,4.7868805]
[1773111514564,16.03246754,86.523,86.486,27.09260051]
[1773111514764,16.93150238,86.535,86.491,16.68760051]
[1773111514972,16.93150238,86.551,86.501,16.68760051]
[1773111516076,10.398,86.55,86.503,16.68760051]
[1773111516372,16.93150238,86.551,86.503,16.68760051]
[1773111517370,16.93150238,86.551,86.51,10.402]
[1773111517679,16.93150238,86.549,86.503,16.68760051]
[1773111518477,4.7868805,86.54,86.503,16.68760051]
[1773111518777,16.93150238,86.539,86.503,16.68760051]
[1773111520580,16.93150238,86.569,86.52,4.7868805]
[1773111520882,16.93150238,86.569,86.53,21.47448101]
[1773111521077,16.93150238,86.569,86.531,16.68760051]
[1773111521284,10.395,86.573,86.531,16.68760051]
[1773111521581,16.93150238,86.589,86.54,4.7868805]
[1773111521982,10.394,86.582,86.531,16.68760051]
[1773111523081,16.93150238,86.589,86.541,16.68760051]
[1773111523580,16.93150238,86.589,86.531,16.68760051]
[1773111524079,16.93150238,86.589,86.54,4.7868805]
[1773111524584,16.93150238,86.587,86.54,4.7868805]
[1773111524984,10.394,86.58,86.535,16.68760051]
[1773111525483,16.93150238,86.587,86.54,4.7868805]
[1773111525680,16.93150238,86.587,86.541,16.68760051]
[1773111525875,20.776,86.631,86.502,55.42902323]
[1773111525876,16.93150238,86.579,86.53,21.46839052]
[1773111526077,16.93150238,86.579,86.531,16.68760051]
[1773111526885,2.01026506,86.635,86.53,4.78079001]
[1773111526886,16.93150238,86.609,86.539,16.68760051]
[1773111527080,4.78079001,86.61,86.56,4.78079001]
[1773111527276,16.93150238,86.609,86.561,16.68760051]
[1773111527480,16.93150238,86.598,86.551,16.68760051]
[1773111527680,16.93150238,86.598,86.518,34.7]
[1773111527681,16.93150238,86.579,86.534,16.68760051]
[1773111528582,4.78079001,86.57,86.521,16.68760051]
[1773111528878,16.93150238,86.569,86.521,16.68760051]
[1773111531487,10.396,86.567,86.521,16.68760051]
[1773111531694,16.72632578,86.559,86.514,10.402]
[1773111531894,16.72632578,86.559,86.514,26.22394989]
[1773111532794,16.72632578,86.559,86.515,15.82194989]
[1773111533591,16.72632578,86.559,86.516,26.22394989]
[1773111533796,16.72632578,86.559,86.51,4.78079001]
[1773111533797,16.72632578,86.559,86.521,15.82194989]
[1773111534592,16.72632578,86.569,86.523,15.82194989]
[1773111535799,16.72632578,86.569,86.526,10.4]
[1773111535996,16.72632578,86.569,86.53,4.78079001]
[1773111536297,16.72632578,86.569,86.526,10.4]
[1773111536691,16.72632578,86.569,86.53,10.4]
[1773111536996,16.72632578,86.577,86.531,15.82194989]
[1773111537693,16.72632578,86.568,86.531,15.82194989]
[1773111540597,16.72632578,86.578,86.534,15.82194989]
[1773111543294,4.78079001,86.59,86.54,4.78079001]
[1773111543496,4.78079001,86.59,86.475,27.95378749]
[1773111543497,16.72632578,86.592,86.551,15.83115017]
[1773111543901,16.43327643,86.589,86.543,15.83115017]
[1773111544100,16.43327643,86.589,86.531,15.83115017]
[1773111544600,16.43327643,86.579,86.536,10.399]
[1773111548501,16.43327643,86.577,86.53,4.78079001]
[1773111548803,16.43327643,86.577,86.531,15.83115017]
[1773111549508,16.43327643,86.577,86.532,10.4]
[1773111549804,16.43327643,86.577,86.541,15.83115017]
[1773111550504,16.43327643,86.577,86.53,4.78079001]
[1773111550704,16.43327643,86.577,86.522,15.83115017]
[1773111551305,16.43327643,86.577,86.533,10.4]
[1773111551505,16.43327643,86.577,86.534,15.83115017]
[1773111552407,16.43327643,86.577,86.537,15.83115017]
[1773111554408,10.395,86.575,86.53,4.78079001]
[1773111554606,16.43327643,86.574,86.53,4.78079001]
[1773111555710,16.43327643,86.574,86.53,20.61194018]
[1773111555911,16.43327643,86.574,86.53,15.83115017]
[1773111556708,16.43327643,86.566,86.519,10.401]
[1773111557812,16.43327643,86.564,86.519,10.401]
[1773111559216,16.43327643,86.562,86.517,15.83115017]
[1773111560716,16.43327643,86.562,86.518,10.401]
[1773111561316,16.43327643,86.562,86.518,26.23215017]
[1773111561519,16.43327643,86.562,86.519,15.83115017]
[1773111562122,16.43327643,86.56,86.519,15.83115017]
[1773111562313,16.43327643,86.559,86.51,10.402]
[1773111563414,16.43327643,86.557,86.51,10.402]
[1773111564021,16.43327643,86.554,86.51,10.402]
[1773111564216,16.43327643,86.549,86.504,14.1093698]
[1773111564622,16.43327643,86.549,86.501,15.83115017]
[1773111564822,16.43327643,86.567,86.521,15.83115017]
[1773111565629,16.43327643,86.567,86.53,4.78079001]
[1773111565826,16.43327643,86.567,86.531,15.83115017]
[1773111572028,10.393,86.587,86.541,15.83115017]
[1773111572235,16.43327643,86.593,86.541,15.83115017]
[1773111572832,16.43327643,86.593,86.55,20.61194018]
[1773111573033,16.43327643,86.593,86.551,15.83115017]
[1773111575535,10.392,86.6,86.551,15.83115017]
[1773111576631,10.392,86.6,86.552,15.44474675]
[1773111576834,15.84555575,86.605,86.56,4.78079001]
[1773111577041,15.84555575,86.605,86.561,15.44474675]
[1773111577733,15.84555575,86.605,86.563,10.396]
[1773111577940,26.23555575,86.617,86.564,15.44474675]
[1773111578135,26.23555575,86.617,86.571,15.44474675]
[1773111578640,15.84555575,86.617,86.573,15.44474675]
[1773111579240,15.84555575,86.617,86.581,15.44474675]
[1773111582139,10.389,86.626,86.581,15.44474675]
[1773111582346,26.23455575,86.626,86.581,15.44474675]
[1773111582550,15.84555575,86.625,86.583,15.44474675]
[1773111584344,15.84555575,86.625,86.57,4.78079001]
[1773111584345,15.84555575,86.637,86.591,15.44474675]
[1773111584843,15.84555575,86.629,86.576,15.44474675]
[1773111585043,15.84555575,86.619,86.576,15.44474675]
[1773111588445,15.84555575,86.619,86.58,4.77702238]
[1773111590144,15.84555575,86.619,86.576,15.44474675]
[1773111590549,15.84555575,86.619,86.567,10.395]
[1773111590849,16.56573393,86.609,86.571,16.36731864]
[1773111591144,16.56573393,86.619,86.571,16.36731864]
[1773111591349,16.56573393,86.617,86.571,16.36731864]
[1773111592350,16.56573393,86.615,86.571,16.36731864]
[1773111593342,16.56573393,86.615,86.571,26.76231864]
[1773111593843,16.56573393,86.615,86.571,16.36731864]
[1773111594645,16.56573393,86.615,86.56,4.77702238]
[1773111594851,16.56573393,86.615,86.561,16.36731864]
[1773111595552,16.56573393,86.613,86.563,10.396]
[1773111596651,16.56573393,86.613,86.563,26.76331864]
[1773111597450,16.56573393,86.613,86.566,16.36731864]
[1773111598549,16.56573393,86.608,86.566,16.36731864]
[1773111600158,16.56573393,86.608,86.52,34.67]
[1773111600159,16.56573393,86.592,86.55,4.77702238]
[1773111600349,16.56573393,86.592,86.545,16.36731864]
[1773111600554,16.56573393,86.592,86.55,4.77702238]
[1773111600862,10.394,86.584,86.551,16.36731864]
[1773111601156,16.56573393,86.592,86.54,4.77702238]
[1773111601454,16.56573393,86.59,86.543,16.36731864]
[1773111601749,16.56573393,86.59,86.508,20.72902323]
[1773111601750,16.56573393,86.569,86.521,16.36731864]
[1773111601955,16.56573393,86.549,86.506,16.36731864]
[1773111602155,16.56573393,86.549,86.494,16.36731864]
[1773111602349,16.56573393,86.57,86.521,16.36731864]
[1773111602556,16.56573393,86.589,86.54,21.14434102]
[1773111602758,16.56573393,86.589,86.55,21.14434102]
[1773111603361,16.56573393,86.603,86.56,4.77702238]
[1773111603556,20.769,86.663,86.554,15.62940634]
[1773111603557,20.35241587,86.6,86.554,15.62940634]
[1773111603859,15.57539349,86.599,86.554,15.62940634]
[1773111604156,15.57539349,86.599,86.56,4.77702238]
[1773111604349,15.57539349,86.599,86.554,15.62940634]
[1773111605558,14.31419395,86.672,86.505,55.39902323]
[1773111605559,15.57539349,86.616,86.57,4.77702238]
[1773111605761,20.35241587,86.63,86.571,15.62940634]
[1773111606061,15.57539349,86.619,86.571,15.62940634]
[1773111606652,4.77702238,86.6,86.551,15.62940634]
[1773111606857,15.57539349,86.599,86.54,4.77702238]
[1773111608065,15.57539349,86.599,86.55,4.77702238]
[1773111608364,25.96739349,86.599,86.55,20.40642872]
[1773111608567,25.96739349,86.599,86.551,15.62940634]
[1773111609269,15.57539349,86.599,86.56,4.77702238]
[1773111609867,15.57539349,86.614,86.57,4.77702238]
[1773111610767,15.57539349,86.614,86.515,20.72902323]
[1773111610768,15.57539349,86.599,86.547,15.62940634]
[1773111610967,15.57539349,86.589,86.547,15.62940634]
[1773111611268,15.57539349,86.603,86.551,15.62940634]
[1773111612174,15.57539349,86.603,86.561,15.62940634]
[1773111612368,15.57539349,86.619,86.561,15.62940634]
[1773111613370,10.39,86.617,86.561,15.62940634]
[1773111613570,10.39,86.617,86.525,20.72902323]
[1773111613571,4.77702238,86.58,86.518,15.62940634]
[1773111613769,15.57539349,86.579,86.521,15.62940634]
[1773111613965,15.57539349,86.579,86.54,4.77702238]
[1773111614167,15.57539349,86.594,86.551,15.62940634]
[1773111614474,15.57539349,86.609,86.551,15.62940634]
[1773111615071,4.77702238,86.6,86.551,15.62940634]
[1773111615268,15.57539349,86.609,86.551,15.62940634]
[1773111615469,15.57539349,86.608,86.531,20.72902323]
[1773111615670,15.57539349,86.599,86.541,15.62940634]
[1773111615871,15.57539349,86.589,86.541,15.62940634]
[1773111616174,15.57539349,86.579,86.526,15.62940634]
[1773111616375,15.57539349,86.579,86.54,4.77702238]
[1773111617074,15.57539349,86.579,86.531,15.62940634]
[1773111617375,15.57539349,86.579,86.532,15.62940634]
[1773111617578,4.77702238,86.59,86.532,15.62940634]
[1773111617777,4.77702238,86.59,86.54,4.77702238]
[1773111617969,15.57539349,86.593,86.54,4.77702238]
[1773111617970,15.57539349,86.593,86.541,15.62940634]
[1773111618168,15.57539349,86.593,86.55,4.77702238]
[1773111618569,15.57539349,86.589,86.541,15.62940634]
[1773111619379,15.57539349,86.589,86.55,4.77702238]
[1773111619976,15.57539349,86.603,86.57,4.77702238]
[1773111620175,15.57539349,86.603,86.56,4.77702238]
[1773111620575,15.57539349,86.599,86.553,10.397]
[1773111621278,25.96739349,86.598,86.551,15.62940634]
[1773111621479,15.57539349,86.597,86.551,15.62940634]
[1773111628677,15.57539349,86.589,86.537,15.62940634]
[1773111628885,15.57539349,86.579,86.537,15.62940634]
[1773111629281,14.31419395,86.635,86.49,20.81]
[1773111629282,15.57539349,86.594,86.541,15.62940634]
[1773111629578,4.77702238,86.59,86.541,15.62940634]
[1773111629783,15.57539349,86.589,86.541,15.62940634]
[1773111630280,15.57539349,86.579,86.537,10.399]
[1773111631184,15.57539349,86.579,86.531,15.62940634]
[1773111631385,4.77702238,86.57,86.507,15.62940634]
[1773111631587,10.396,86.567,86.515,10.402]
[1773111631882,15.57539349,86.566,86.515,10.402]
[1773111632078,4.77702238,86.55,86.5,4.77702238]
[1773111632383,4.77702238,86.55,86.39,72.46178498]
[1773111632384,4.77702238,86.54,86.497,15.62940634]
[1773111632783,10.398,86.546,86.499,10.404]
[1773111632983,15.57539349,86.546,86.501,15.62940634]
[1773111634681,16.28531243,86.539,86.488,15.84215146]